[Event "Late-Titled-Tuesday-Blitz-June-18-2024"]
[Site "Chess.com"]
[Date "2024.06.18"]
[Round "1"]
[White "Pelusiansky"]
[Black "OIAM03"]
[Result "1-0"]
[WhiteElo "2548"]
[BlackElo "2032"]
[TimeControl "180+1"]
[EndTime "14:06:18 PDT"]
[Termination "Pelusiansky won on time"]

1. c4 {[%clk 0:02:58]} 1... Nf6 {[%clk 0:02:59.5]} 2. Nc3 {[%clk 0:02:53.9]}
2... d5 {[%clk 0:02:58.4]} 3. cxd5 {[%clk 0:02:54]} 3... Nxd5 {[%clk 0:02:58.3]}
4. Nf3 {[%clk 0:02:54.3]} 4... g6 {[%clk 0:02:56.6]} 5. h4 {[%clk 0:02:53.9]}
5... Bg7 {[%clk 0:02:55.8]} 6. h5 {[%clk 0:02:54.5]} 6... O-O {[%clk 0:02:53.5]}
7. hxg6 {[%clk 0:02:53.5]} 7... fxg6 {[%clk 0:02:47.5]} 8. Qb3 {[%clk
0:02:46.3]} 8... e6 {[%clk 0:02:42.2]} 9. d4 {[%clk 0:02:31.5]} 9... Nc6 {[%clk
0:02:26.7]} 10. e3 {[%clk 0:02:16.6]} 10... a6 {[%clk 0:02:14.6]} 11. Bd2 {[%clk
0:02:13.8]} 11... Na5 {[%clk 0:02:00.5]} 12. Qc2 {[%clk 0:02:03.6]} 12... b6
{[%clk 0:01:39.2]} 13. Ne4 {[%clk 0:01:57.6]} 13... Bb7 {[%clk 0:01:16]} 14.
Neg5 {[%clk 0:01:48.7]} 14... Nf6 {[%clk 0:01:10.9]} 15. Nxe6 {[%clk 0:01:34.3]}
15... Qe7 {[%clk 0:00:50.2]} 16. Nxf8 {[%clk 0:01:28.3]} 16... Rxf8 {[%clk
0:00:49.7]} 17. Rc1 {[%clk 0:01:25.3]} 17... Nc6 {[%clk 0:00:46.4]} 18. Bd3
{[%clk 0:01:07.7]} 18... Nb4 {[%clk 0:00:44.6]} 19. Qb3+ {[%clk 0:01:01.2]}
19... Nbd5 {[%clk 0:00:17.6]} 20. Ne5 {[%clk 0:00:54.6]} 20... Nd7 {[%clk
0:00:03.7]} 21. Bxa6 {[%clk 0:00:40.6]} 21... Bxa6 {[%clk 0:00:01.7]} 22. Qxd5+
{[%clk 0:00:40.5]} 1-0

[Event "Late-Titled-Tuesday-Blitz-June-18-2024"]
[Site "Chess.com"]
[Date "2024.06.18"]
[Round "1"]
[White "Mackster23"]
[Black "IngOscarArdila"]
[Result "0-1"]
[WhiteElo "2723"]
[BlackElo "2427"]
[TimeControl "180+1"]
[EndTime "14:06:21 PDT"]
[Termination "IngOscarArdila won on time"]

1. e4 {[%clk 0:03:00.9]} 1... e5 {[%clk 0:02:58.4]} 2. Nf3 {[%clk 0:03:00.6]}
2... Nf6 {[%clk 0:02:58.4]} 3. Nc3 {[%clk 0:03:00.6]} 3... Nc6 {[%clk
0:02:58.3]} 4. g3 {[%clk 0:03:00.7]} 4... Bc5 {[%clk 0:02:57.5]} 5. Bg2 {[%clk
0:02:59.9]} 5... d6 {[%clk 0:02:57.5]} 6. d3 {[%clk 0:02:59.9]} 6... Bg4 {[%clk
0:02:57.1]} 7. h3 {[%clk 0:02:47.7]} 7... Be6 {[%clk 0:02:56.7]} 8. Na4 {[%clk
0:02:46.4]} 8... Bb4+ {[%clk 0:02:55.9]} 9. c3 {[%clk 0:02:45.6]} 9... Ba5
{[%clk 0:02:56.2]} 10. b4 {[%clk 0:02:45.2]} 10... Bb6 {[%clk 0:02:56.4]} 11.
O-O {[%clk 0:02:42.8]} 11... h6 {[%clk 0:02:55.4]} 12. Kh2 {[%clk 0:02:41.4]}
12... O-O {[%clk 0:02:49.4]} 13. a3 {[%clk 0:02:23.4]} 13... a6 {[%clk
0:02:47.6]} 14. Nxb6 {[%clk 0:02:22]} 14... cxb6 {[%clk 0:02:47.5]} 15. c4
{[%clk 0:02:10.1]} 15... a5 {[%clk 0:02:47]} 16. Bd2 {[%clk 0:01:55.7]} 16...
Qc7 {[%clk 0:02:39.4]} 17. Bc3 {[%clk 0:01:52]} 17... Rac8 {[%clk 0:02:38.1]}
18. Qd2 {[%clk 0:01:50.8]} 18... Rfd8 {[%clk 0:02:33.2]} 19. b5 {[%clk
0:01:30.2]} 19... Nb8 {[%clk 0:02:32.9]} 20. Nh4 {[%clk 0:01:29.4]} 20... Nbd7
{[%clk 0:02:31.5]} 21. f4 {[%clk 0:01:29.2]} 21... Nc5 {[%clk 0:02:29.1]} 22.
Rad1 {[%clk 0:01:20.9]} 22... Nb3 {[%clk 0:02:24.7]} 23. Qe3 {[%clk 0:01:18.8]}
23... Qc5 {[%clk 0:02:19.9]} 24. Qe2 {[%clk 0:00:56.4]} 24... Nd4 {[%clk
0:02:15.5]} 25. Bxd4 {[%clk 0:00:56.4]} 25... Qxd4 {[%clk 0:02:15.7]} 26. f5
{[%clk 0:00:46.2]} 26... Bd7 {[%clk 0:02:15]} 27. g4 {[%clk 0:00:46.8]} 27...
Qc5 {[%clk 0:02:07.7]} 28. a4 {[%clk 0:00:45.4]} 28... Qb4 {[%clk 0:02:06.5]}
29. Ra1 {[%clk 0:00:37.2]} 29... Be8 {[%clk 0:02:04.3]} 30. Bf3 {[%clk
0:00:33.9]} 30... Nd7 {[%clk 0:02:03.4]} 31. Ng2 {[%clk 0:00:32.3]} 31... f6
{[%clk 0:02:00.8]} 32. Ne3 {[%clk 0:00:31.8]} 32... Bf7 {[%clk 0:01:59.5]} 33.
h4 {[%clk 0:00:28.9]} 33... Qc5 {[%clk 0:01:51.4]} 34. g5 {[%clk 0:00:26.9]}
34... hxg5 {[%clk 0:01:51.1]} 35. hxg5 {[%clk 0:00:27.8]} 35... Kf8 {[%clk
0:01:51.1]} 36. Kg3 {[%clk 0:00:08.6]} 36... Ke7 {[%clk 0:01:50.6]} 37. Rh1
{[%clk 0:00:08.7]} 37... Rh8 {[%clk 0:01:50.1]} 38. g6 {[%clk 0:00:07.3]} 38...
Rxh1 {[%clk 0:01:48.9]} 39. Rxh1 {[%clk 0:00:08.1]} 39... Bg8 {[%clk 0:01:48.9]}
40. Rh8 {[%clk 0:00:08.2]} 40... Qd4 {[%clk 0:01:35.2]} 41. Nf1 {[%clk
0:00:03.2]} 41... Nc5 {[%clk 0:01:33.4]} 42. Qe3 {[%clk 0:00:01.6]} 42... Qxd3
{[%clk 0:01:29.1]} 43. Qxd3 {[%clk 0:00:01.4]} 43... Nxd3 {[%clk 0:01:30]} 44.
Ne3 {[%clk 0:00:01.9]} 44... Nf4 {[%clk 0:01:29.3]} 45. Kf2 {[%clk 0:00:01]}
45... Kf8 {[%clk 0:01:26.8]} 0-1

[Event "Late-Titled-Tuesday-Blitz-June-18-2024"]
[Site "Chess.com"]
[Date "2024.06.18"]
[Round "1"]
[White "CristhianPortalR"]
[Black "vi_pranav"]
[Result "0-1"]
[WhiteElo "2513"]
[BlackElo "3032"]
[TimeControl "180+1"]
[EndTime "14:06:23 PDT"]
[Termination "vi_pranav won on time"]

1. c4 {[%clk 0:02:56.3]} 1... e5 {[%clk 0:02:57.6]} 2. Nc3 {[%clk 0:02:54]} 2...
Nc6 {[%clk 0:02:52.1]} 3. g3 {[%clk 0:02:53.7]} 3... f5 {[%clk 0:02:49.8]} 4.
Bg2 {[%clk 0:02:51.6]} 4... Nf6 {[%clk 0:02:50.1]} 5. e3 {[%clk 0:02:48.9]} 5...
Bb4 {[%clk 0:02:49.2]} 6. Nge2 {[%clk 0:02:48.7]} 6... O-O {[%clk 0:02:49]} 7.
O-O {[%clk 0:02:45.2]} 7... Bxc3 {[%clk 0:02:44.9]} 8. Nxc3 {[%clk 0:02:44.7]}
8... d6 {[%clk 0:02:45.8]} 9. d4 {[%clk 0:02:40.4]} 9... Qe8 {[%clk 0:02:45.6]}
10. Nd5 {[%clk 0:02:32.5]} 10... Qd8 {[%clk 0:02:33.4]} 11. dxe5 {[%clk
0:02:06.9]} 11... Nxe5 {[%clk 0:02:32.6]} 12. b3 {[%clk 0:02:05.1]} 12... c6
{[%clk 0:02:24.8]} 13. Nf4 {[%clk 0:01:47]} 13... Qe7 {[%clk 0:02:22.4]} 14. Bb2
{[%clk 0:01:46.1]} 14... Bd7 {[%clk 0:02:22.1]} 15. Ba3 {[%clk 0:01:40.8]} 15...
Nf7 {[%clk 0:02:20]} 16. Qd3 {[%clk 0:01:33.9]} 16... Rad8 {[%clk 0:02:17.6]}
17. Rad1 {[%clk 0:01:34.2]} 17... Bc8 {[%clk 0:02:17.8]} 18. Bb2 {[%clk
0:01:32]} 18... Ne5 {[%clk 0:02:17.1]} 19. Qb1 {[%clk 0:01:31.5]} 19... Ne4
{[%clk 0:02:15.2]} 20. Qa1 {[%clk 0:01:25.7]} 20... Rde8 {[%clk 0:02:02.7]} 21.
Ba3 {[%clk 0:00:58.3]} 21... Rf6 {[%clk 0:01:48.7]} 22. Qd4 {[%clk 0:00:50.5]}
22... Nc5 {[%clk 0:01:31.5]} 23. Rd2 {[%clk 0:00:36.3]} 23... g5 {[%clk
0:01:25.4]} 24. Ne2 {[%clk 0:00:32]} 24... Rh6 {[%clk 0:01:20.2]} 25. Rfd1
{[%clk 0:00:20.8]} 25... Ne4 {[%clk 0:01:14.9]} 26. Bxe4 {[%clk 0:00:18.1]}
26... fxe4 {[%clk 0:01:15.2]} 27. Qxe4 {[%clk 0:00:17.6]} 27... Qf7 {[%clk
0:01:12]} 28. Nd4 {[%clk 0:00:08.1]} 28... Bg4 {[%clk 0:01:07.4]} 29. Qg2 {[%clk
0:00:02.9]} 29... Nf3+ {[%clk 0:00:58.2]} 30. Nxf3 {[%clk 0:00:02.7]} 30... Bxf3
{[%clk 0:00:59.1]} 31. Qf1 {[%clk 0:00:02.5]} 31... Qh5 {[%clk 0:00:59.7]} 32.
h3 {[%clk 0:00:02.2]} 32... Qxh3 {[%clk 0:00:58.7]} 0-1

[Event "Late-Titled-Tuesday-Blitz-June-18-2024"]
[Site "Chess.com"]
[Date "2024.06.18"]
[Round "1"]
[White "szachmistrz2500"]
[Black "Mysterio47"]
[Result "1-0"]
[WhiteElo "2495"]
[BlackElo "2838"]
[TimeControl "180+1"]
[EndTime "14:06:24 PDT"]
[Termination "szachmistrz2500 won by resignation"]

1. e4 {[%clk 0:03:00.3]} 1... d6 {[%clk 0:03:00.1]} 2. d4 {[%clk 0:02:56.7]}
2... Nf6 {[%clk 0:03:00.7]} 3. Bd3 {[%clk 0:02:53]} 3... e5 {[%clk 0:03:00.3]}
4. c3 {[%clk 0:02:52.7]} 4... Nc6 {[%clk 0:03:00.2]} 5. Ne2 {[%clk 0:02:51.3]}
5... g6 {[%clk 0:03:00.1]} 6. O-O {[%clk 0:02:50.1]} 6... Bg7 {[%clk 0:03:00]}
7. f4 {[%clk 0:02:50.2]} 7... O-O {[%clk 0:03:00.2]} 8. d5 {[%clk 0:02:43.1]}
8... Ne7 {[%clk 0:02:59.8]} 9. fxe5 {[%clk 0:02:42.1]} 9... dxe5 {[%clk
0:03:00.7]} 10. Bg5 {[%clk 0:02:41.8]} 10... Ne8 {[%clk 0:02:58.9]} 11. Qd2
{[%clk 0:02:38.6]} 11... f6 {[%clk 0:02:56.1]} 12. Bh6 {[%clk 0:02:37.8]} 12...
Nd6 {[%clk 0:02:55.1]} 13. c4 {[%clk 0:02:35.2]} 13... c5 {[%clk 0:02:54.8]} 14.
dxc6 {[%clk 0:02:30.2]} 14... Nxc6 {[%clk 0:02:52.8]} 15. c5 {[%clk 0:02:28]}
15... Nf7 {[%clk 0:02:42.8]} 16. Bxg7 {[%clk 0:02:27.4]} 16... Kxg7 {[%clk
0:02:43.7]} 17. Qe3 {[%clk 0:02:25.1]} 17... Bg4 {[%clk 0:02:40.8]} 18. Nbc3
{[%clk 0:02:23.6]} 18... Bxe2 {[%clk 0:02:35.2]} 19. Nxe2 {[%clk 0:02:20.2]}
19... Ng5 {[%clk 0:02:35.6]} 20. Bc4 {[%clk 0:02:08.1]} 20... Nd4 {[%clk
0:02:33.8]} 21. Nxd4 {[%clk 0:01:59.1]} 21... Qxd4 {[%clk 0:02:31.6]} 22. Qxd4
{[%clk 0:01:57.1]} 22... exd4 {[%clk 0:02:32.5]} 23. Bd5 {[%clk 0:01:57.5]}
23... Rac8 {[%clk 0:02:24.6]} 24. b4 {[%clk 0:01:56.3]} 24... b6 {[%clk
0:02:25.1]} 25. c6 {[%clk 0:01:43.9]} 25... Rfe8 {[%clk 0:02:18.4]} 26. Rfe1
{[%clk 0:01:43]} 26... Nf7 {[%clk 0:01:58.8]} 27. Red1 {[%clk 0:01:20.2]} 27...
Ne5 {[%clk 0:01:57.4]} 28. b5 {[%clk 0:01:18.1]} 28... d3 {[%clk 0:01:57.4]} 29.
a4 {[%clk 0:01:18.1]} 29... f5 {[%clk 0:01:50.6]} 30. exf5 {[%clk 0:01:07.4]}
30... gxf5 {[%clk 0:01:49.6]} 31. a5 {[%clk 0:01:07.7]} 31... Rc7 {[%clk
0:01:43.4]} 32. axb6 {[%clk 0:01:05.1]} 32... axb6 {[%clk 0:01:44.3]} 33. Ra6
{[%clk 0:01:02.8]} 33... Rd8 {[%clk 0:01:42.8]} 34. Bb3 {[%clk 0:01:02.6]} 34...
Rb8 {[%clk 0:01:34.3]} 35. h3 {[%clk 0:00:50.6]} 35... Kf6 {[%clk 0:01:32.8]}
36. Kf2 {[%clk 0:00:50.6]} 36... f4 {[%clk 0:01:33.1]} 37. Ra4 {[%clk 0:00:46]}
37... Kg5 {[%clk 0:01:29.8]} 38. Re1 {[%clk 0:00:44.5]} 38... Re8 {[%clk
0:01:23.9]} 39. Rae4 {[%clk 0:00:43.5]} 39... Rce7 {[%clk 0:01:15.5]} 40. c7
{[%clk 0:00:40.1]} 40... d2 {[%clk 0:01:13.6]} 41. Rxe5+ {[%clk 0:00:38.7]}
41... Rxe5 {[%clk 0:00:52.1]} 42. Rxe5+ {[%clk 0:00:38.5]} 42... Rxe5 {[%clk
0:00:52.4]} 43. c8=Q {[%clk 0:00:38.5]} 43... Re3 {[%clk 0:00:51.4]} 44. Qg4+
{[%clk 0:00:36.5]} 1-0

[Event "Late-Titled-Tuesday-Blitz-June-18-2024"]
[Site "Chess.com"]
[Date "2024.06.18"]
[Round "1"]
[White "penguingm1"]
[Black "FuenfgegenWilly"]
[Result "1-0"]
[WhiteElo "2954"]
[BlackElo "2501"]
[TimeControl "180+1"]
[EndTime "14:06:25 PDT"]
[Termination "penguingm1 won by resignation"]

1. d4 {[%clk 0:03:00.9]} 1... d5 {[%clk 0:02:58.2]} 2. Bf4 {[%clk 0:03:00.6]}
2... Nc6 {[%clk 0:02:57.1]} 3. e3 {[%clk 0:03:00.5]} 3... f6 {[%clk 0:02:57.4]}
4. Nf3 {[%clk 0:03:00.4]} 4... Bg4 {[%clk 0:02:57]} 5. Be2 {[%clk 0:02:54.3]}
5... Bxf3 {[%clk 0:02:55.7]} 6. Bxf3 {[%clk 0:02:53.9]} 6... e5 {[%clk
0:02:56.6]} 7. dxe5 {[%clk 0:02:51.5]} 7... fxe5 {[%clk 0:02:57.5]} 8. Bg3
{[%clk 0:02:51.8]} 8... Nf6 {[%clk 0:02:58.1]} 9. Bh4 {[%clk 0:02:51.5]} 9... e4
{[%clk 0:02:50.4]} 10. Be2 {[%clk 0:02:17]} 10... Ne5 {[%clk 0:02:32]} 11. Bxf6
{[%clk 0:01:39.1]} 11... gxf6 {[%clk 0:02:31.4]} 12. Bh5+ {[%clk 0:01:39.4]}
12... Ng6 {[%clk 0:02:28.6]} 13. Nc3 {[%clk 0:01:32.1]} 13... c6 {[%clk
0:02:24.2]} 14. Qg4 {[%clk 0:01:30.1]} 14... Kf7 {[%clk 0:02:08.6]} 15. O-O-O
{[%clk 0:01:28.3]} 15... Qc8 {[%clk 0:01:56.6]} 16. Qg3 {[%clk 0:01:06.7]} 16...
Bb4 {[%clk 0:01:50.5]} 17. Ne2 {[%clk 0:01:05.1]} 17... Ba5 {[%clk 0:01:27.7]}
18. Bg4 {[%clk 0:00:49]} 18... f5 {[%clk 0:01:19.5]} 19. Bh3 {[%clk 0:00:41.1]}
19... Rf8 {[%clk 0:00:59.9]} 20. Nd4 {[%clk 0:00:34.2]} 20... Ne7 {[%clk
0:00:37.5]} 21. f3 {[%clk 0:00:29.9]} 21... c5 {[%clk 0:00:20.2]} 22. Nb5 {[%clk
0:00:27.9]} 22... Qe6 {[%clk 0:00:14.2]} 23. fxe4 {[%clk 0:00:25.4]} 23... fxe4
{[%clk 0:00:13.1]} 24. Nd6+ {[%clk 0:00:25.3]} 1-0

[Event "Late-Titled-Tuesday-Blitz-June-18-2024"]
[Site "Chess.com"]
[Date "2024.06.18"]
[Round "1"]
[White "Seppppppy"]
[Black "xasid81"]
[Result "1-0"]
[WhiteElo "2236"]
[BlackElo "2582"]
[TimeControl "180+1"]
[EndTime "14:06:26 PDT"]
[Termination "Seppppppy won by resignation"]

1. d4 {[%clk 0:03:00.9]} 1... d5 {[%clk 0:02:51.7]} 2. c4 {[%clk 0:03:00.6]}
2... e6 {[%clk 0:02:52.3]} 3. Nc3 {[%clk 0:03:00.4]} 3... Nf6 {[%clk 0:02:52.9]}
4. cxd5 {[%clk 0:03:00.6]} 4... Nxd5 {[%clk 0:02:53.8]} 5. e4 {[%clk 0:02:58.9]}
5... Nxc3 {[%clk 0:02:53.7]} 6. bxc3 {[%clk 0:02:59.8]} 6... c5 {[%clk
0:02:54.5]} 7. Rb1 {[%clk 0:02:56.4]} 7... Be7 {[%clk 0:02:49.8]} 8. Nf3 {[%clk
0:02:51.1]} 8... O-O {[%clk 0:02:49.3]} 9. h4 {[%clk 0:02:40.1]} 9... b6 {[%clk
0:02:42.6]} 10. h5 {[%clk 0:02:38.3]} 10... Ba6 {[%clk 0:02:39.9]} 11. Bxa6
{[%clk 0:02:35.1]} 11... Nxa6 {[%clk 0:02:40.8]} 12. h6 {[%clk 0:02:35.4]} 12...
g6 {[%clk 0:02:40.5]} 13. Qe2 {[%clk 0:02:33]} 13... Nb8 {[%clk 0:02:35.7]} 14.
O-O {[%clk 0:02:21]} 14... Nd7 {[%clk 0:02:33.2]} 15. d5 {[%clk 0:02:16.3]}
15... exd5 {[%clk 0:02:32.7]} 16. exd5 {[%clk 0:02:15.5]} 16... Re8 {[%clk
0:02:32.6]} 17. c4 {[%clk 0:02:07.9]} 17... Bf6 {[%clk 0:02:32.1]} 18. Qc2
{[%clk 0:02:04.4]} 18... Ne5 {[%clk 0:02:32.1]} 19. Nxe5 {[%clk 0:02:02.3]}
19... Bxe5 {[%clk 0:02:32.5]} 20. Be3 {[%clk 0:01:59]} 20... Qh4 {[%clk
0:02:31.3]} 21. f4 {[%clk 0:01:47.7]} 21... Qxh6 {[%clk 0:02:27.9]} 22. Rf3
{[%clk 0:01:37.2]} 22... Bf6 {[%clk 0:02:17.7]} 23. Qf2 {[%clk 0:01:26.9]} 23...
Rxe3 {[%clk 0:02:12.3]} 24. Rxe3 {[%clk 0:01:22.6]} 24... Bd4 {[%clk 0:02:12.1]}
25. Rbe1 {[%clk 0:01:19.4]} 25... Bxe3 {[%clk 0:02:11.3]} 26. Qxe3 {[%clk
0:01:17.2]} 26... Qg7 {[%clk 0:02:10.1]} 27. d6 {[%clk 0:01:06.7]} 27... Qf6
{[%clk 0:02:05.7]} 28. d7 {[%clk 0:01:05.2]} 28... Rd8 {[%clk 0:02:01.9]} 29.
Rd1 {[%clk 0:01:03]} 29... Kf8 {[%clk 0:01:59.8]} 30. Rd5 {[%clk 0:00:14]} 30...
h5 {[%clk 0:01:47.3]} 31. f5 {[%clk 0:00:13.4]} 31... g5 {[%clk 0:01:40]} 32.
Qf3 {[%clk 0:00:10.4]} 32... g4 {[%clk 0:01:35.6]} 33. Qf4 {[%clk 0:00:10.6]}
33... Kg7 {[%clk 0:01:31.3]} 34. Rd6 {[%clk 0:00:10.2]} 34... Qa1+ {[%clk
0:01:21.2]} 35. Kh2 {[%clk 0:00:10.7]} 35... g3+ {[%clk 0:01:12.8]} 36. Qxg3+
{[%clk 0:00:06.5]} 36... Kf8 {[%clk 0:01:08.3]} 37. f6 {[%clk 0:00:07.1]} 37...
Qxf6 {[%clk 0:00:58.4]} 38. Rxf6 {[%clk 0:00:07.9]} 1-0

[Event "Late-Titled-Tuesday-Blitz-June-18-2024"]
[Site "Chess.com"]
[Date "2024.06.18"]
[Round "1"]
[White "santosalberto1987"]
[Black "Navyblue1"]
[Result "1-0"]
[WhiteElo "2582"]
[BlackElo "2184"]
[TimeControl "180+1"]
[EndTime "14:06:26 PDT"]
[Termination "santosalberto1987 won by resignation"]

1. e4 {[%clk 0:02:58.3]} 1... c5 {[%clk 0:02:53.8]} 2. Nf3 {[%clk 0:02:58.2]}
2... d6 {[%clk 0:02:51.1]} 3. Bb5+ {[%clk 0:02:58.2]} 3... Nd7 {[%clk
0:02:47.5]} 4. d4 {[%clk 0:02:57.8]} 4... cxd4 {[%clk 0:02:26.4]} 5. Qxd4 {[%clk
0:02:58.7]} 5... a6 {[%clk 0:02:26.6]} 6. Bxd7+ {[%clk 0:02:58.5]} 6... Bxd7
{[%clk 0:02:19]} 7. Nc3 {[%clk 0:02:59.4]} 7... e5 {[%clk 0:02:11.7]} 8. Qd3
{[%clk 0:02:59.2]} 8... Be6 {[%clk 0:02:02.8]} 9. O-O {[%clk 0:02:57.4]} 9...
Be7 {[%clk 0:02:01.4]} 10. Rd1 {[%clk 0:02:55.7]} 10... h6 {[%clk 0:01:55.1]}
11. Nd2 {[%clk 0:02:55.4]} 11... Nf6 {[%clk 0:01:53.8]} 12. Nc4 {[%clk
0:02:53.9]} 12... Bxc4 {[%clk 0:01:51]} 13. Qxc4 {[%clk 0:02:53.7]} 13... Rc8
{[%clk 0:01:47.4]} 14. Qa4+ {[%clk 0:02:53.3]} 14... Qd7 {[%clk 0:01:45.4]} 15.
Qxd7+ {[%clk 0:02:53.1]} 15... Kxd7 {[%clk 0:01:40.5]} 16. Be3 {[%clk
0:02:50.4]} 16... Rc4 {[%clk 0:01:33.2]} 17. f3 {[%clk 0:02:50.1]} 17... Rhc8
{[%clk 0:01:30.6]} 18. a4 {[%clk 0:02:42.4]} 18... Ke6 {[%clk 0:00:44.7]} 19.
Rd2 {[%clk 0:02:39.3]} 19... Rb4 {[%clk 0:00:31.8]} 20. Ra2 {[%clk 0:02:30]}
20... Bd8 {[%clk 0:00:24.7]} 21. Kf2 {[%clk 0:02:23.1]} 21... Bb6 {[%clk
0:00:20.9]} 22. Bxb6 {[%clk 0:02:16.1]} 22... Rxb6 {[%clk 0:00:21.8]} 23. Ke2
{[%clk 0:02:15.7]} 23... Rb4 {[%clk 0:00:21.1]} 24. Kd1 {[%clk 0:02:15]} 24...
Rc6 {[%clk 0:00:20.4]} 25. Nd5 {[%clk 0:02:14]} 25... Rbc4 {[%clk 0:00:17.4]}
26. c3 {[%clk 0:02:10.7]} 26... Kd7 {[%clk 0:00:11.1]} 27. Nxf6+ {[%clk
0:01:43.2]} 27... gxf6 {[%clk 0:00:10.4]} 28. Kc2 {[%clk 0:01:43.2]} 28... Ke6
{[%clk 0:00:10]} 29. Ra1 {[%clk 0:01:42.6]} 29... f5 {[%clk 0:00:10]} 30. exf5+
{[%clk 0:01:39.5]} 30... Kxf5 {[%clk 0:00:10]} 31. Rad1 {[%clk 0:01:39.6]} 31...
Ke6 {[%clk 0:00:10]} 32. Kb3 {[%clk 0:01:38.6]} 32... f5 {[%clk 0:00:08.6]} 33.
Rxd6+ {[%clk 0:01:36.7]} 33... Rxd6 {[%clk 0:00:08.2]} 34. Rxd6+ {[%clk
0:01:37.5]} 34... Kxd6 {[%clk 0:00:07.7]} 35. Kxc4 {[%clk 0:01:37.8]} 35... Kc6
{[%clk 0:00:08.6]} 36. g4 {[%clk 0:01:32.9]} 36... b5+ {[%clk 0:00:07.8]} 37.
axb5+ {[%clk 0:01:32.8]} 37... axb5+ {[%clk 0:00:08.1]} 38. Kd3 {[%clk
0:01:33.2]} 38... fxg4 {[%clk 0:00:07]} 39. fxg4 {[%clk 0:01:33.2]} 39... Kd5
{[%clk 0:00:07.9]} 40. b3 {[%clk 0:01:31.8]} 40... e4+ {[%clk 0:00:07.1]} 41.
Ke3 {[%clk 0:01:32]} 41... Ke5 {[%clk 0:00:08]} 42. h4 {[%clk 0:01:30.2]} 42...
Kd5 {[%clk 0:00:06.2]} 43. g5 {[%clk 0:01:29.7]} 43... hxg5 {[%clk 0:00:05.7]}
44. hxg5 {[%clk 0:01:30.6]} 44... Ke5 {[%clk 0:00:06.3]} 45. g6 {[%clk
0:01:30.3]} 45... Kf6 {[%clk 0:00:07]} 46. Kxe4 {[%clk 0:01:30.6]} 46... Kxg6
{[%clk 0:00:07.9]} 47. Kd5 {[%clk 0:01:30.3]} 47... Kf6 {[%clk 0:00:08.8]} 48.
Kc5 {[%clk 0:01:30.3]} 48... Ke6 {[%clk 0:00:09.7]} 49. Kxb5 {[%clk 0:01:30.4]}
49... Kd6 {[%clk 0:00:10.4]} 50. Kb6 {[%clk 0:01:30.4]} 50... Kd7 {[%clk
0:00:11]} 51. c4 {[%clk 0:01:29.4]} 51... Kc8 {[%clk 0:00:11.9]} 52. Kc6 {[%clk
0:01:29.6]} 52... Kb8 {[%clk 0:00:12.6]} 53. Kd7 {[%clk 0:01:29.8]} 1-0

[Event "Late-Titled-Tuesday-Blitz-June-18-2024"]
[Site "Chess.com"]
[Date "2024.06.18"]
[Round "1"]
[White "pinelone"]
[Black "Adar_07"]
[Result "0-1"]
[WhiteElo "2468"]
[BlackElo "2824"]
[TimeControl "180+1"]
[EndTime "14:06:30 PDT"]
[Termination "Adar_07 won on time"]

1. Nf3 {[%clk 0:03:00.9]} 1... Nf6 {[%clk 0:02:57.1]} 2. c4 {[%clk 0:03:00.5]}
2... e6 {[%clk 0:02:56.7]} 3. b3 {[%clk 0:03:00.5]} 3... d5 {[%clk 0:02:56.5]}
4. Bb2 {[%clk 0:03:00.8]} 4... Be7 {[%clk 0:02:57]} 5. g3 {[%clk 0:03:01.1]}
5... O-O {[%clk 0:02:57.2]} 6. Bg2 {[%clk 0:03:01.4]} 6... b6 {[%clk 0:02:56.3]}
7. O-O {[%clk 0:03:00.7]} 7... Bb7 {[%clk 0:02:55.9]} 8. cxd5 {[%clk 0:03:01]}
8... Nxd5 {[%clk 0:02:54.6]} 9. d4 {[%clk 0:02:59.9]} 9... Nd7 {[%clk
0:02:54.3]} 10. Re1 {[%clk 0:02:57.8]} 10... N7f6 {[%clk 0:02:54]} 11. e4 {[%clk
0:02:48.4]} 11... Nb4 {[%clk 0:02:53.3]} 12. a3 {[%clk 0:02:45.4]} 12... Nc6
{[%clk 0:02:50.2]} 13. Nc3 {[%clk 0:02:41.7]} 13... Qd7 {[%clk 0:02:44]} 14. d5
{[%clk 0:02:30.1]} 14... exd5 {[%clk 0:02:44.9]} 15. e5 {[%clk 0:02:28.2]} 15...
Ne8 {[%clk 0:02:36.6]} 16. Nxd5 {[%clk 0:02:22.2]} 16... Rd8 {[%clk 0:02:35.7]}
17. Nxe7+ {[%clk 0:02:02.6]} 17... Qxe7 {[%clk 0:02:35.6]} 18. Qc2 {[%clk
0:01:55.1]} 18... Nb8 {[%clk 0:02:22.2]} 19. Rac1 {[%clk 0:01:47.5]} 19... c5
{[%clk 0:02:21.9]} 20. h4 {[%clk 0:01:44.7]} 20... h6 {[%clk 0:02:20]} 21. Rcd1
{[%clk 0:01:22.8]} 21... Nc7 {[%clk 0:02:18.5]} 22. Rxd8 {[%clk 0:00:29.9]}
22... Rxd8 {[%clk 0:02:19.4]} 23. Qf5 {[%clk 0:00:21.1]} 23... Ne6 {[%clk
0:02:17.4]} 24. Bc3 {[%clk 0:00:17]} 24... Bd5 {[%clk 0:02:13.7]} 25. Nd2 {[%clk
0:00:15.7]} 25... Bxg2 {[%clk 0:02:13.2]} 26. Kxg2 {[%clk 0:00:16.3]} 26... Nc6
{[%clk 0:02:13.5]} 27. Nf3 {[%clk 0:00:15.3]} 27... Qd7 {[%clk 0:02:09.9]} 28.
Qe4 {[%clk 0:00:14.5]} 28... Qd5 {[%clk 0:02:09]} 29. Qxd5 {[%clk 0:00:13.8]}
29... Rxd5 {[%clk 0:02:09.9]} 30. Re2 {[%clk 0:00:13.1]} 30... Rd3 {[%clk
0:02:10.1]} 31. Re3 {[%clk 0:00:13.4]} 31... Rd1 {[%clk 0:02:07.7]} 32. Re1
{[%clk 0:00:12.1]} 32... Rd5 {[%clk 0:02:06]} 33. Re2 {[%clk 0:00:10]} 33... Kf8
{[%clk 0:02:03.2]} 34. Rd2 {[%clk 0:00:10.2]} 34... Rxd2 {[%clk 0:02:02.3]} 35.
Nxd2 {[%clk 0:00:09.4]} 35... Ke7 {[%clk 0:02:02.7]} 36. f4 {[%clk 0:00:09.4]}
36... Nc7 {[%clk 0:02:02.3]} 37. Ne4 {[%clk 0:00:07.8]} 37... Nd5 {[%clk
0:02:02.6]} 38. Bd2 {[%clk 0:00:08.2]} 38... Nd4 {[%clk 0:02:01.9]} 39. b4
{[%clk 0:00:07.6]} 39... c4 {[%clk 0:02:02.4]} 40. Nc3 {[%clk 0:00:07]} 40...
Ke6 {[%clk 0:01:59.6]} 41. Ne4 {[%clk 0:00:04.6]} 41... Nb3 {[%clk 0:01:58.2]}
42. Bc3 {[%clk 0:00:04.3]} 42... f5 {[%clk 0:01:52]} 43. exf6 {[%clk 0:00:04.1]}
43... gxf6 {[%clk 0:01:52.9]} 44. Bb2 {[%clk 0:00:04.2]} 44... f5 {[%clk
0:01:52.1]} 45. Nc3 {[%clk 0:00:04]} 45... Nd2 {[%clk 0:01:47.4]} 46. Nxd5
{[%clk 0:00:02.8]} 46... Kxd5 {[%clk 0:01:48.3]} 47. Bc3 {[%clk 0:00:02.8]}
47... Ne4 {[%clk 0:01:48.5]} 48. Be1 {[%clk 0:00:02.9]} 48... c3 {[%clk
0:01:49]} 49. Kf3 {[%clk 0:00:01.5]} 49... h5 {[%clk 0:01:49.4]} 50. Ke2 {[%clk
0:00:02.1]} 50... Kc4 {[%clk 0:01:49.7]} 51. Ke3 {[%clk 0:00:02.3]} 51... c2
{[%clk 0:01:48.8]} 52. Bd2 {[%clk 0:00:02.3]} 52... Kb3 {[%clk 0:01:48]} 53. Bc1
{[%clk 0:00:02.3]} 53... Kc3 {[%clk 0:01:48.9]} 54. Ke2 {[%clk 0:00:02.4]} 54...
Nxg3+ {[%clk 0:01:48.2]} 55. Kf3 {[%clk 0:00:03]} 55... Ne4 {[%clk 0:01:49.1]}
56. Ke3 {[%clk 0:00:03.6]} 56... b5 {[%clk 0:01:49]} 57. Kf3 {[%clk 0:00:03.7]}
57... Kd3 {[%clk 0:01:49.2]} 58. Bb2 {[%clk 0:00:02.9]} 58... Kd2 {[%clk
0:01:49.3]} 0-1